bitfinex/quotes_ETHUSD_20241018
["timestamp","ask_amount","ask_price","bid_price","bid_amount"]
[1729231978774,0.1552,2630.7,2630.4,5.60220982]
[1729231979185,0.1552,2630.7,2630.4,1.80051982]
[1729231979482,0.1552,2630.7,2630.5,3.80154]
[1729231979695,0.1552,2630.7,2630.6,0.1332983]
[1729231985427,0.1552,2630.7,2630.6,1.80041622]
[1729231986125,0.1552,2630.7,2630.6,0.1332983]
[1729231988099,0.1552,2630.7,2630.4,1.66711792]
[1729231988305,0.1552,2630.7,2630.5,0.1333646]
[1729231989201,0.1552,2630.7,2630.5,1.80048252]
[1729231990041,0.1552,2630.7,2630.5,0.1333646]
[1729231993331,0.1552,2630.7,2630.5,1.80048252]
[1729231993535,0.1552,2630.7,2630.5,0.1333646]
[1729231994410,0.1552,2630.7,2630.6,1.66711792]
[1729231994604,0.1552,2630.7,2630.6,0.13326931]
[1729231997305,0.1552,2630.7,2630.4,1.66711792]
[1729231997679,3.95648,2630.7,2630.5,0.13334389]
[1729232000435,0.1552,2630.7,2630.5,0.13334389]
[1729232001539,3.9565,2630.7,2630.5,0.13334389]
[1729232001944,0.1552,2630.7,2630.5,0.13334389]
[1729232002609,3.95647,2630.7,2630.5,0.13334389]
[1729232002812,4.70827,2630.7,2630.5,0.13334389]
[1729232004010,3.95647,2630.7,2630.5,0.13334389]
[1729232004215,4.62961,2630.6,2630.5,0.13334389]
[1729232004628,4.62961,2630.6,2630.2,1.66711792]
[1729232004827,4.62961,2630.6,2630.5,0.13340603]
[1729232005350,4.62961,2630.6,2630.2,1.66711792]
[1729232005532,4.62961,2630.6,2630.5,0.13340603]
[1729232005850,4.62961,2630.6,2630.3,1.66711792]
[1729232006018,4.62961,2630.6,2630.5,0.13340603]
[1729232006225,4.62961,2630.6,2630.4,0.13345576]
[1729232006430,4.62961,2630.6,2630.5,0.13340603]
[1729232006832,4.62961,2630.6,2630.3,1.66711792]
[1729232007033,4.62961,2630.6,2630.5,0.13340603]
[1729232007244,4.62961,2630.6,2630.4,0.13345576]
[1729232007442,4.62961,2630.6,2630.5,0.13340603]
[1729232007829,4.62961,2630.6,2630.3,1.66711792]
[1729232008032,4.62961,2630.6,2630.5,0.13340603]
[1729232008248,3.80155,2630.5,2630.4,0.13345576]
[1729232008451,4.62962,2630.6,2630.3,1.66711792]
[1729232008760,4.62962,2630.6,2630.2,1.66711792]
[1729232008989,4.62962,2630.6,2630.3,1.66711792]
[1729232009133,4.62962,2630.6,2630.3,1.80062342]
[1729232010467,0.8282,2630.6,2630.3,1.80062342]
[1729232010969,4.11167,2630.7,2630.4,1.66711792]
[1729232011174,4.11167,2630.7,2630.3,1.80062342]
[1729232011348,3.95647,2630.7,2630.5,0.13340603]
[1729232011545,7.75786,2630.7,2630.4,0.13345576]
[1729232011871,3.80151,2630.6,2630.3,1.66711792]
[1729232012038,3.80151,2630.6,2630.5,0.13340603]
[1729232012539,3.80151,2630.6,2630.3,1.66711792]
[1729232012739,3.80151,2630.6,2630.4,0.13345576]
[1729232013779,3.8015,2630.6,2630.4,0.13345576]
[1729232013960,3.95649,2630.7,2630.4,0.13345576]
[1729232014276,7.75785,2630.7,2630.4,0.13345576]
[1729232014432,3.95649,2630.7,2630.4,0.13345576]
[1729232015079,3.95649,2630.7,2630.4,1.80057368]
[1729232016338,3.95649,2630.7,2630.4,0.13345576]
[1729232016566,3.95649,2630.7,2630.3,1.66711792]
[1729232016762,3.95649,2630.7,2630.5,0.13346819]
[1729232016972,3.95649,2630.7,2630.4,0.13351793]
[1729232017163,3.95649,2630.7,2630.6,0.13341846]
[1729232017381,3.95649,2630.7,2630.5,0.13346819]
[1729232017585,3.95649,2630.7,2630.6,0.13341846]
[1729232018005,3.95649,2630.7,2630.3,1.66711792]
[1729232018307,3.95649,2630.7,2630.6,0.13341846]
[1729232018505,3.95649,2630.7,2630.3,1.66711792]
[1729232018669,3.95649,2630.7,2630.6,0.13341846]
[1729232018863,3.95649,2630.7,2630.3,1.66711792]
[1729232019064,3.95649,2630.7,2630.6,0.13341846]
[1729232019260,3.95649,2630.7,2630.3,1.66711792]
[1729232019488,3.95649,2630.7,2630.6,0.13341846]
[1729232019688,3.95649,2630.7,2630.3,1.66711792]
[1729232019888,3.95649,2630.7,2630.6,0.13341846]
[1729232020073,3.95649,2630.7,2630.3,1.66711792]
[1729232020290,3.95649,2630.7,2630.6,0.13341846]
[1729232020469,3.95649,2630.7,2630.3,1.66711792]
[1729232020671,3.95649,2630.7,2630.6,0.13341846]
[1729232020871,3.95649,2630.7,2630.3,1.66711792]
[1729232021382,0.1552,2630.7,2630.4,1.80063585]
[1729232021598,0.1552,2630.7,2630.4,0.13351793]
[1729232022011,0.1552,2630.7,2630.4,1.80063585]
[1729232022503,0.1552,2630.7,2630.4,0.13351793]
[1729232024266,0.1552,2630.7,2630.5,1.66711792]
[1729232024766,0.1552,2630.7,2630.6,0.13341846]
[1729232025008,0.1552,2630.7,2630.6,1.80053638]
[1729232027904,0.1552,2630.7,2630.6,0.13341846]
[1729232028112,0.1552,2630.7,2630.6,1.80053638]
[1729232028293,0.1552,2630.7,2630.6,0.13341846]
[1729232030306,0.9408,2630.7,2630.6,0.13341846]
[1729232030692,0.9408,2630.7,2630.4,1.66711792]
[1729232030881,0.9408,2630.7,2630.6,0.1334143]
[1729232031082,0.9408,2630.7,2630.5,0.13346403]
[1729232031277,0.9408,2630.7,2630.6,0.1334143]
[1729232031714,0.9408,2630.7,2630.4,1.66711792]
[1729232031884,0.9408,2630.7,2630.6,0.1334143]
[1729232032089,0.9408,2630.7,2630.4,1.66711792]
[1729232032090,0.9408,2630.7,2630.5,0.13346403]
[1729232032291,0.9408,2630.7,2630.6,0.1334143]
[1729232032604,0.9408,2630.7,2630.4,1.66711792]
[1729232032913,0.9408,2630.7,2630.6,0.1334143]
[1729232033124,4.74213,2630.7,2630.5,0.13346403]
[1729232033320,4.74213,2630.7,2630.6,0.1334143]
[1729232033483,5.596451,2630.7,2630.6,0.1334143]
[1729232033684,5.596451,2630.7,2630.3,1.66711792]
[1729232033884,4.74213,2630.7,2630.6,0.1334143]
[1729232034389,4.74213,2630.7,2630.3,1.66711792]
[1729232034610,4.74213,2630.7,2630.6,0.1334143]
[1729232034807,4.74213,2630.7,2630.3,1.66711792]
[1729232035085,4.74213,2630.7,2630.6,0.1334143]
[1729232035586,4.74213,2630.7,2630.3,1.66711792]
[1729232035785,4.74213,2630.7,2630.6,0.1334143]
[1729232035987,5.596451,2630.7,2630.3,1.66711792]
[1729232036188,4.74213,2630.7,2630.6,0.1334143]
[1729232036387,4.74213,2630.7,2630.3,1.66711792]
[1729232036587,4.74213,2630.7,2630.6,0.1334143]
[1729232036829,4.74213,2630.7,2630.3,1.66711792]
[1729232036997,4.74213,2630.7,2630.6,0.1334143]
[1729232037188,4.74213,2630.7,2630.4,1.66711792]
[1729232037390,4.74213,2630.7,2630.6,0.1334143]
[1729232037595,4.74213,2630.7,2630.4,1.66711792]
[1729232037821,0.9408,2630.7,2630.6,0.1334143]
[1729232038029,0.9408,2630.7,2630.4,1.66711792]
[1729232038320,0.9408,2630.7,2630.6,0.1334143]
[1729232038797,0.9408,2630.7,2630.4,1.66711792]
[1729232038995,0.9408,2630.7,2630.6,0.1334143]
[1729232039200,0.9408,2630.7,2630.4,1.66711792]
[1729232039429,0.9408,2630.7,2630.6,0.1334143]
[1729232039725,0.9408,2630.7,2630.3,5.46887792]
[1729232039891,0.9408,2630.7,2630.6,0.1334143]
[1729232040090,0.9408,2630.7,2630.3,5.46887792]
[1729232040626,0.9408,2630.7,2630.4,1.80064411]
[1729232040824,0.9408,2630.7,2630.4,0.13352619]
[1729232042534,0.9408,2630.7,2630.4,1.80064411]
[1729232043322,0.9408,2630.7,2630.4,0.13352619]
[1729232043529,4.74207,2630.7,2630.4,0.13352619]
[1729232044317,3.80148,2630.6,2630.4,0.13352619]
[1729232044825,3.80149,2630.6,2630.5,0.13347646]
[1729232045193,3.80149,2630.6,2630.3,1.66711792]
[1729232045423,3.80149,2630.6,2630.5,0.13347646]
[1729232045626,3.80149,2630.6,2630.4,0.13352619]
[1729232045835,3.80149,2630.6,2630.3,1.66711792]
[1729232046042,3.80149,2630.6,2630.5,0.13347646]
[1729232046197,3.80149,2630.6,2630.4,0.13352619]
[1729232046542,3.80149,2630.6,2630.3,1.66711792]
[1729232046701,3.80149,2630.6,2630.5,0.13347646]
[1729232046896,3.80149,2630.6,2630.4,0.13352619]
[1729232047127,3.80149,2630.6,2630.5,0.13347646]
[1729232047497,3.80149,2630.6,2630.3,1.66711792]
[1729232047693,3.80149,2630.6,2630.5,0.13347646]
[1729232047933,3.80149,2630.6,2630.4,0.13352619]
[1729232048107,3.80149,2630.6,2630.5,0.13347646]
[1729232048935,4.7412757,2630.6,2630.2,1.66711792]
[1729232049099,3.80149,2630.6,2630.5,0.13347646]
[1729232049299,3.80149,2630.6,2630.3,1.66711792]
[1729232049496,5.596377,2630.7,2630.5,0.13347646]
[1729232049735,5.596377,2630.7,2630.4,0.13352619]
[1729232049736,3.80141,2630.6,2630.4,0.13352619]
[1729232049900,3.80141,2630.6,2630.3,1.66711792]
[1729232050302,3.80141,2630.6,2630.0,3.80226]
[1729232050503,3.80141,2630.6,2629.9,0.79029479]
[1729232050504,0.8094,2630.4,2630.1,1.66711792]
[1729232051317,0.8094,2630.4,2629.9,3.80232]
[1729232051519,0.8094,2630.4,2630.2,1.66711792]
[1729232052143,0.8094,2630.4,2630.3,1.66711792]
[1729232052306,4.78927,2630.7,2630.3,1.66711792]
[1729232052500,5.648305,2630.7,2630.3,1.66711792]
[1729232053100,3.80154,2630.6,2630.3,1.66711792]
[1729232053307,3.80154,2630.6,2630.2,1.66711792]
[1729232053921,3.80155,2630.6,2630.2,1.66711792]
[1729232054428,3.80155,2630.6,2630.3,0.13358423]
[1729232058036,3.80155,2630.6,2630.3,1.80070215]
[1729232058235,3.80155,2630.6,2630.3,0.13358423]
[1729232063059,7.60308,2630.6,2630.3,0.13358423]
[1729232063255,3.80153,2630.6,2630.3,0.13358423]
[1729232066478,0.9879,2630.7,2630.4,1.66711792]
[1729232066681,1.37344321,2630.9,2630.6,1.66711792]
[1729232066839,3.80065,2631.2,2630.7,1.66711792]
[1729232066840,0.7781,2631.1,2630.7,1.66711792]
[1729232067038,0.7781,2631.1,2630.7,0.133377]
[1729232067238,0.7781,2631.1,2630.7,1.80049492]
[1729232067968,0.7781,2631.1,2630.8,1.66711792]
[1729232068477,0.7781,2631.1,2630.9,0.13327756]
[1729232069187,0.7781,2631.1,2630.7,1.66711792]
[1729232069483,0.7781,2631.1,2631.0,0.13322785]
[1729232069780,4.57887,2631.1,2630.7,1.66711792]
[1729232070381,4.57887,2631.1,2630.8,0.13332728]
[1729232070545,4.57887,2631.1,2630.7,1.66711792]
[1729232070744,4.57887,2631.1,2630.8,0.13332728]
[1729232070943,3.80085,2631.0,2630.7,1.66711792]
[1729232071289,3.80085,2631.0,2630.8,0.13332728]
[1729232071581,0.7781,2631.1,2630.7,1.66711792]
[1729232071883,4.57891,2631.1,2630.8,0.13332728]
[1729232072188,4.57891,2631.1,2630.7,1.66711792]
[1729232072358,4.57891,2631.1,2630.9,0.13314913]
[1729232072559,3.80083,2631.0,2630.6,1.66711792]
[1729232072755,3.80083,2631.0,2630.7,0.13324857]
[1729232072955,3.80083,2631.0,2630.6,1.66711792]
[1729232073159,3.80083,2631.0,2630.7,0.13324857]
[1729232077459,3.80083,2631.0,2630.5,5.46857792]
[1729232077654,3.80083,2631.0,2630.8,0.12864567]
[1729232077860,4.80549979,2631.0,2630.5,5.46857792]
[1729232078176,3.80083,2631.0,2630.5,5.46857792]
[1729232078392,3.80083,2631.0,2630.6,0.12874512]
[1729232078747,3.80083,2631.0,2630.6,1.79586304]
[1729232078945,3.80083,2631.0,2630.6,0.12874512]
[1729232080185,3.80083,2631.0,2630.6,1.79586304]
[1729232080386,3.80083,2631.0,2630.6,0.12874512]
[1729232080684,0.7781,2631.1,2630.7,1.66711792]
[1729232080983,4.57883,2631.1,2630.7,0.12869539]
[1729232081182,3.80083,2631.0,2630.7,0.12869539]
[1729232081560,3.80083,2631.0,2630.5,5.46857792]
[1729232081748,3.80083,2631.0,2630.6,0.12878225]
[1729232082462,3.80106,2630.9,2630.6,0.12878225]
[1729232087198,3.80114,2630.8,2630.6,0.12878225]
[1729232087388,3.80114,2630.8,2630.4,1.66711792]
[1729232087389,3.80126,2630.7,2630.4,1.66711792]
[1729232087593,3.80126,2630.7,2630.3,4.66711792]
[1729232087821,3.80126,2630.7,2630.5,0.12885673]
[1729232087954,3.80126,2630.7,2630.3,4.66711792]
[1729232088155,3.80126,2630.7,2630.4,1.79602438]
[1729232088695,3.80126,2630.7,2630.4,0.12890646]
[1729232088872,3.80126,2630.7,2630.4,1.79602438]
[1729232089057,4.57494,2630.8,2630.4,1.79602438]
[1729232089258,8.37618,2630.8,2630.4,0.12890646]
[1729232089795,3.80128,2630.7,2630.4,0.12890646]
[1729232089961,8.37617,2630.8,2630.4,1.79602438]
[1729232090158,4.57494,2630.8,2630.4,1.79602438]
[1729232090378,4.57494,2630.8,2630.4,0.12890646]
[1729232090589,3.8013,2630.7,2630.4,1.79602438]
[1729232090895,4.57494,2630.8,2630.4,0.12890646]
[1729232091089,4.57494,2630.8,2630.4,1.79602438]
[1729232091474,8.37615,2630.8,2630.4,1.79602438]
[1729232091702,3.80128,2630.7,2630.4,1.79602438]
[1729232092336,3.80155,2630.5,2630.4,0.12890646]
[1729232092501,3.80153,2630.6,2630.4,0.12890646]
[1729232092687,3.80153,2630.6,2630.2,1.66711792]
[1729232093094,3.80153,2630.6,2630.3,0.12771981]
[1729232094409,3.80153,2630.6,2630.3,1.79483773]
[1729232094613,3.80153,2630.6,2630.3,0.12771981]
[1729232097299,3.80153,2630.6,2630.3,1.79483773]
[1729232098011,3.80153,2630.6,2630.3,0.12771981]
[1729232098387,3.80153,2630.6,2630.3,1.79483773]
[1729232098591,3.80153,2630.6,2630.3,0.12771981]
[1729232103642,5.46881792,2630.4,2630.3,0.12771981]
[1729232103795,6.22571792,2630.4,2630.3,0.12771981]
[1729232104136,3.80287,2629.6,2629.3,1.66711792]
[1729232104296,3.80287,2629.6,2629.0,3.80361]
[1729232104499,3.80274,2629.7,2629.4,1.78491347]
[1729232104697,3.80274,2629.7,2629.4,1.66711792]
[1729232104898,3.80274,2629.7,2629.5,0.11774578]
[1729232105320,3.80285,2629.6,2629.5,0.11774578]
[1729232105700,0.8138,2629.9,2629.5,1.66711792]
[1729232105944,3.80261,2629.8,2629.5,1.7848637]
[1729232106109,4.61629,2629.9,2629.6,1.66711792]
[1729232106452,7.60527,2629.8,2629.6,0.11769601]
[1729232106612,7.60527,2629.8,2629.4,1.66711792]
[1729232106613,1.00861879,2629.7,2629.4,1.66711792]
[1729232106813,3.80259,2629.8,2629.4,1.66711792]
[1729232107017,3.80259,2629.8,2629.5,0.11774578]
[1729232107213,4.61625,2629.9,2629.5,1.7848637]
[1729232107423,3.80245,2629.9,2629.5,0.11774578]
[1729232107620,3.80188,2630.3,2629.8,1.66711792]
[1729232107804,3.80188,2630.3,2630.0,1.66711792]
[1729232107805,0.380188,2630.2,2630.0,1.66711792]
[1729232108033,0.380188,2630.2,2630.1,0.11744723]
[1729232108342,0.380188,2630.2,2629.8,1.66711792]
[1729232108641,3.80199,2630.2,2629.9,1.66711792]
[1729232108799,3.80199,2630.2,2629.9,0.11754673]
[1729232109437,4.57848,2630.3,2629.9,1.66711792]
[1729232109641,4.57848,2630.3,2630.0,0.11749698]
[1729232110436,3.80207,2630.2,2629.8,1.66711792]
[1729232110636,8.38044,2630.3,2630.1,0.11744723]
[1729232110840,1.00475579,2630.2,2629.8,1.66711792]
[1729232111048,4.57848,2630.3,2630.2,0.11739748]
[1729232111205,4.57848,2630.3,2629.7,3.80269]
[1729232111206,4.57848,2630.3,2629.9,1.66711792]
[1729232111551,4.57848,2630.3,2630.0,0.11749698]
[1729232111719,3.80213,2630.1,2630.0,0.11749698]
[1729232112040,3.80201,2630.2,2629.8,1.66711792]
[1729232112243,3.80201,2630.2,2630.0,0.11749698]
[1729232112402,4.80677079,2630.2,2629.8,1.66711792]
[1729232112602,8.38044,2630.3,2630.0,1.66711792]
[1729232112833,8.38044,2630.3,2629.8,3.80255]
[1729232112834,3.80199,2630.2,2630.1,0.11744723]
[1729232113043,4.57848,2630.3,2630.1,1.66711792]
[1729232113044,0.7766,2630.3,2630.1,1.66711792]
[1729232113202,0.7958,2630.8,2630.2,3.80198]
[1729232113403,0.7958,2630.8,2630.4,1.66711792]
[1729232113404,4.59701,2630.8,2630.4,1.66711792]
[1729232113598,4.59701,2630.8,2630.5,0.11724827]
[1729232114017,3.80106,2630.9,2630.5,1.78436619]
[1729232114217,0.8219,2631.0,2630.8,1.66711792]
[1729232114560,0.8219,2631.2,2630.9,0.11712314]
[1729232114847,3.80065,2631.2,2630.9,0.11712314]
[1729232115048,3.80047,2631.3,2630.9,0.11712314]
[1729232115208,5.46788792,2631.1,2630.9,0.11712314]
[1729232115406,5.46788792,2631.1,2630.5,1.66711792]
[1729232115407,3.80083,2631.0,2630.5,1.66711792]
[1729232115710,4.58534,2631.0,2630.6,1.78439023]
[1729232116017,0.7845,2631.0,2630.6,1.78439023]
[1729232116220,4.58535,2631.0,2630.6,1.78439023]
[1729232116663,0.7845,2631.0,2630.6,1.78439023]
[1729232116955,3.80077,2631.1,2630.6,1.78439023]
[1729232117756,3.80077,2631.1,2630.6,0.11727231]
[1729232117958,7.6016,2631.1,2630.6,1.78439023]
[1729232118125,3.80083,2631.0,2630.6,1.66711792]
[1729232118327,3.80083,2631.0,2630.7,0.11722258]
[1729232118728,3.80083,2631.0,2630.6,1.66711792]
[1729232118927,3.80083,2631.0,2630.8,0.11717286]
[1729232119125,3.80077,2631.1,2630.7,0.11722258]
[1729232119442,3.80077,2631.1,2630.8,0.11717286]
[1729232119626,8.74452767,2631.1,2630.8,0.11717286]
[1729232119828,4.94372767,2631.1,2630.6,1.66711792]
[1729232120132,3.80086,2631.0,2630.9,0.11712314]
[1729232120673,3.80086,2631.0,2630.6,1.66711792]
[1729232120959,3.80086,2631.0,2630.9,0.11712314]
[1729232121154,3.80086,2631.0,2630.5,5.46866792]
[1729232121464,3.80086,2631.0,2630.6,1.66711792]
[1729232121687,3.80086,2631.0,2630.6,1.78439023]
[1729232122167,3.80086,2631.0,2630.6,0.11727231]
[1729232122464,3.80086,2631.0,2630.6,1.78439023]
[1729232122927,3.80077,2631.1,2630.7,1.66711792]
[1729232123127,3.80077,2631.1,2630.6,5.58578023]
[1729232123327,3.80077,2631.1,2630.8,0.11717286]
[1729232123528,3.80077,2631.1,2630.7,0.11722258]
[1729232123851,3.80077,2631.1,2630.6,5.46850792]
[1729232123852,3.80083,2631.0,2630.8,0.11717286]
[1729232124046,3.80083,2631.0,2630.6,1.66711792]
[1729232124248,3.80083,2631.0,2630.9,0.11700845]
[1729232124447,7.60157,2631.1,2630.6,1.66711792]
[1729232124648,7.60157,2631.1,2630.9,0.11700845]
[1729232124852,8.60763879,2631.1,2630.6,1.66711792]
[1729232125056,7.60157,2631.1,2631.0,0.11695874]
[1729232125259,3.80091,2631.0,2630.6,1.66711792]
[1729232128388,4.59261,2631.2,2630.8,1.66711792]
[1729232128669,4.59261,2631.2,2630.9,1.66711792]
[1729232128828,4.59261,2631.2,2630.8,1.66711792]
[1729232129250,0.59525729,2631.3,2630.9,0.11680772]
[1729232129488,4.55604,2631.4,2631.1,1.66711792]
[1729232129875,4.55604,2631.4,2631.2,0.1166504]
[1729232130186,0.7557,2631.4,2631.0,1.66711792]
[1729232130349,4.55607,2631.4,2631.3,0.11660069]
[1729232130549,4.55607,2631.4,2631.0,1.66711792]
[1729232130784,4.55607,2631.4,2631.3,0.11660069]
[1729232131287,4.55607,2631.4,2631.0,1.66711792]
[1729232131585,4.55607,2631.4,2631.3,0.11660069]
[1729232131780,4.55607,2631.4,2631.0,1.66711792]
[1729232131952,4.55607,2631.4,2631.3,0.11660069]
[1729232132153,4.55573,2631.6,2631.3,1.66711792]
[1729232132464,12.00547,2631.8,2631.3,1.66711792]
[1729232132662,4.55546,2631.8,2631.3,1.66711792]
[1729232132986,4.55546,2631.8,2631.4,0.15015583]
[1729232133161,4.55546,2631.8,2631.4,1.81727375]
[1729232133362,4.55546,2631.8,2631.4,1.66711792]
[1729232133567,8.35525,2631.8,2631.5,0.14976868]
[1729232133891,4.55546,2631.8,2631.5,0.14976868]
[1729232135298,8.35522,2631.8,2631.5,0.14976868]
[1729232135669,3.79994,2631.7,2631.5,0.14976868]
[1729232135981,3.79994,2631.7,2631.4,1.66711792]
[1729232136166,3.79994,2631.7,2631.6,0.14950294]
[1729232136488,3.79994,2631.7,2631.6,0.1492327]
[1729232137255,3.79994,2631.7,2631.6,0.14922861]
[1729232137490,3.79994,2631.7,2631.4,1.66711792]
[1729232137685,3.79994,2631.7,2631.6,0.14922042]
[1729232137888,3.79994,2631.7,2631.5,1.66711792]
[1729232138190,3.79994,2631.7,2631.6,0.14922042]
[1729232138969,3.79994,2631.7,2631.4,1.66711792]
[1729232139188,3.79994,2631.7,2631.6,0.14922861]
[1729232139393,3.79996,2631.6,2631.5,0.14927958]
[1729232139608,0.7557,2631.8,2631.6,0.14922861]
[1729232139791,0.7896,2632.0,2631.7,1.66711792]
[1729232140086,4.58907,2632.0,2631.7,1.816271]
[1729232140288,4.58907,2632.0,2631.8,1.66711792]
[1729232140509,4.58907,2632.0,2631.8,0.14910211]
[1729232140793,4.58907,2632.0,2631.8,1.66711792]
[1729232140957,4.58907,2632.0,2631.7,1.66711792]
[1729232141154,4.58907,2632.0,2631.9,0.14905115]
[1729232141485,4.58907,2632.0,2631.8,0.14910211]
[1729232141694,4.58907,2632.0,2631.9,0.14905115]
[1729232141873,0.7896,2632.0,2631.8,1.66711792]
[1729232142472,0.7896,2632.0,2631.9,0.14905115]
[1729232143063,0.7896,2632.0,2631.7,1.66711792]
[1729232143264,0.7896,2632.0,2631.8,1.66711792]
[1729232143486,0.7896,2632.0,2631.8,1.81622003]
[1729232145321,4.58899,2632.0,2631.8,1.81622003]
[1729232145784,0.7896,2632.0,2631.8,1.81622003]
[1729232147099,3.79907,2632.3,2631.9,1.66711792]
[1729232147272,3.7989,2632.4,2632.2,1.66711792]
[1729232147473,3.7989,2632.4,2632.3,1.66711792]
[1729232147780,3.7989,2632.4,2632.3,1.81571968]
[1729232148211,3.79862,2632.6,2632.3,1.81571968]
[1729232148212,7.59726,2632.6,2632.3,1.81571968]
[1729232148375,3.79873,2632.5,2632.3,1.81571968]
[1729232148566,7.59728,2632.6,2632.3,1.81571968]
[1729232148909,3.79867,2632.5,2632.3,1.81571968]
[1729232149092,3.79862,2632.6,2632.4,1.66711792]
[1729232149280,3.79862,2632.6,2632.5,1.66711792]
[1729232149480,3.79852,2632.6,2632.4,1.81566874]
[1729232149681,3.79867,2632.5,2632.4,1.66711792]
[1729232154198,3.79867,2632.5,2631.8,3.79958]
[1729232154436,4.59117,2632.4,2632.2,1.66711792]
[1729232154590,4.59117,2632.4,2632.3,1.66711792]
[1729232155502,4.59117,2632.4,2632.2,1.66711792]
[1729232156535,4.637804,2632.4,2631.9,3.0]
[1729232156703,4.61734,2632.3,2632.2,1.66711792]
[1729232157230,4.61734,2632.3,2632.1,1.66711792]
[1729232157386,3.79924,2632.2,2631.7,6.7998]
[1729232158023,3.79924,2632.2,2632.1,1.66711792]
[1729232158532,3.79948,2632.0,2631.9,1.66711792]
[1729232159188,3.79948,2632.0,2631.9,1.81570664]
[1729232159602,4.61528,2632.0,2631.9,0.14858872]
[1729232159990,6.28239792,2632.0,2631.9,0.14858872]
[1729232160190,3.80012,2631.5,2631.0,3.80081]
[1729232160492,3.79993,2631.7,2631.1,3.94966653]
[1729232161006,3.80002,2631.6,2631.1,3.94966653]
[1729232161195,3.80002,2631.6,2631.5,1.66711792]
[1729232161590,3.80002,2631.6,2631.5,1.81591052]
[1729232162600,3.79993,2631.7,2631.5,1.81591052]
[1729232162800,7.59989,2631.7,2631.5,1.81591052]
[1729232163036,0.7555,2631.9,2631.5,1.81591052]
[1729232163037,3.79962,2631.9,2631.6,1.66711792]
[1729232163239,4.55447,2632.1,2631.8,1.66711792]
[1729232163540,3.7991,2632.2,2631.9,0.14385985]
[1729232163693,3.7991,2632.2,2631.7,3.79979]
[1729232163891,3.7991,2632.2,2632.0,1.81092681]
[1729232164093,3.7991,2632.2,2632.0,1.66711792]
[1729232164397,3.7991,2632.2,2632.1,0.14375794]
[1729232164597,5.384786,2632.2,2632.1,0.14375794]
[1729232164919,5.384786,2632.2,2632.0,1.66711792]
[1729232165289,5.384786,2632.2,2632.1,1.66711792]
[1729232165492,5.384786,2632.2,2632.0,1.66711792]
[1729232165729,4.60767,2632.3,2632.1,1.81087586]
[1729232165939,4.60767,2632.3,2632.1,0.14375794]
[1729232166120,3.79897,2632.3,2632.1,0.14375794]
[1729232166325,3.79882,2632.4,2632.1,0.14375794]
[1729232166326,7.59776,2632.4,2632.1,1.81087586]
[1729232166628,7.59776,2632.4,2632.1,1.66711792]
[1729232166850,8.439186,2632.4,2632.1,1.66711792]
[1729232167054,4.640246,2632.4,2632.1,1.66711792]
[1729232167210,3.79897,2632.3,2632.1,1.66711792]
[1729232167411,4.640246,2632.4,2632.2,1.66711792]
[1729232167847,4.640246,2632.4,2632.3,0.14365604]
[1729232168211,4.640246,2632.4,2632.1,1.66711792]
[1729232168421,3.79882,2632.4,2632.3,0.14365604]
[1729232168619,3.79882,2632.4,2632.2,1.81082491]
[1729232168917,3.79882,2632.4,2632.3,1.81077396]
[1729232169134,3.79882,2632.4,2632.3,0.14365604]
[1729232169319,3.79882,2632.4,2632.2,1.66711792]
[1729232169541,3.79882,2632.4,2632.3,0.14365604]
[1729232169722,3.79882,2632.4,2632.2,1.66711792]
[1729232169920,3.79882,2632.4,2632.3,0.14365604]
[1729232170152,3.79882,2632.4,2632.2,1.66711792]
[1729232170313,3.79882,2632.4,2632.3,0.14365604]
[1729232170655,4.55502,2632.6,2632.2,1.66711792]
[1729232170951,3.79881,2632.4,2632.3,1.81077396]
[1729232171162,3.79868,2632.5,2632.3,1.81077396]
[1729232171323,3.79868,2632.5,2632.4,1.66711792]
[1729232171528,5.026434,2632.7,2632.4,1.66711792]
[1729232171529,1.228044,2632.7,2632.4,0.14358053]
[1729232171848,3.79867,2632.5,2632.4,0.14358053]
[1729232172427,3.79867,2632.5,2632.2,1.66711792]
[1729232172628,1.228044,2632.7,2632.4,1.81069845]
[1729232172828,1.228044,2632.7,2632.4,3.79881]
[1729232173048,1.228044,2632.7,2632.5,4.01777991]
[1729232173218,1.228044,2632.7,2632.6,3.79852]
[1729232173413,1.228044,2632.7,2632.5,4.0177773]
[1729232173414,1.228044,2632.7,2632.5,0.14328406]
[1729232173616,1.228044,2632.7,2632.6,1.81035105]
[1729232173846,1.228044,2632.7,2632.6,0.14323313]
[1729232174222,1.228044,2632.7,2632.6,3.71729574]
[1729232174524,1.228044,2632.7,2632.6,3.86039387]
[1729232174918,1.228044,2632.7,2632.6,7.65891387]
[1729232176227,1.228044,2632.7,2632.6,3.86039387]
[1729232176458,1.228044,2632.7,2632.6,0.14309813]
[1729232177536,1.228044,2632.7,2632.6,7.65891387]
[1729232178123,1.228044,2632.7,2632.6,7.73487727]
[1729232178329,1.228044,2632.7,2632.6,8.20891387]
[1729232178763,1.228044,2632.7,2632.6,11.20891387]
[1729232180884,1.228044,2632.7,2632.6,11.21891387]
[1729232182676,1.228044,2632.7,2632.6,11.20891387]
[1729232184173,1.228044,2632.7,2632.6,11.21891387]
[1729232184849,0.8107,2634.0,2633.7,3.71729574]
[1729232185284,0.8107,2634.0,2633.8,0.14159579]
[1729232185892,0.8107,2634.0,2633.9,0.14153264]
[1729232186573,0.8107,2634.0,2633.7,3.71729574]
[1729232186894,0.8107,2634.0,2633.8,0.14158353]
[1729232187257,0.8107,2634.0,2633.5,7.51441574]
[1729232187549,0.8107,2634.0,2633.6,0.07593269]
[1729232187750,0.8107,2634.0,2633.7,0.14163442]
[1729232188155,0.8107,2634.0,2633.6,0.07593265]
[1729232188388,0.8107,2634.0,2633.7,0.14163442]
[1729232188968,4.60722,2634.0,2633.5,7.51441574]
[1729232189167,4.60722,2634.0,2633.6,0.14148915]
[1729232189766,3.79665,2633.9,2633.6,0.14148915]
[1729232190154,0.8107,2634.0,2633.6,0.14148915]
[1729232190360,4.60731,2634.0,2633.6,0.14148915]
[1729232190575,3.79672,2633.9,2633.6,0.14148915]
[1729232190858,3.79665,2633.9,2633.6,0.14148915]
[1729232191383,3.7968,2633.8,2633.7,0.14143826]
[1729232191556,3.7968,2633.8,2633.4,3.0]